Cogmind - Beta 15 @@@ ROGUE MODE // 2025.07.15 @ 21:38:44 Player: naththebg Result: Destroyed by 16-NR8(z) with Zionite Laser-S Performance ------------- Evolutions (3) 1500 Regions Visited (9) 1800 Robots Destroyed (82) 410 Value Destroyed (2503) 2503 Prototype IDs (38) 760 Alien Tech Used (0) 0 Bonus (1634) 1634 TOTAL SCORE: 8607 Bonus ------- High Alert Combat Kills 34 Aligned with FarCom 300 Met Imprinter 300 Destroyed Z-Imprinter 1000 Cogmind --------- Core Integrity 0/700 Matter 160/300 Energy 100/100 System Corruption 0% Temperature Warning (319) Movement Core (350) Ox6 Location -6/Deep Caves Parts ------- > --- POWER (1) -------- Zionite Light DM Reactor > --- PROPULSION (4) --- (None) > --- UTILITY (4) ------ Surveybot 24 Chip > --- WEAPON (4) ------- Zionite Laser-M Mini Assault Cannon > --- INVENTORY (5) ---- Zionite Biocell (600) Peak State ------------ > --- POWER ------------ Zionite Light DM Reactor > --- PROPULSION ------- Zionite Glidesys I Zionite Glidesys II Zionite Glidesys II Zionite Glidesys II > --- UTILITY ---------- Zionite Biocell Zionite Biocell Zionite Weapon Casing Zionite Light Carapace > --- WEAPON ----------- Zionite Laser-M Zionite Laser-M > --- INVENTORY -------- Experimental Heat Sink Experimental Heat Sink [Rating: 79] Favorites ----------- Power Nuclear Core Engine Improved Deuterium Engine Power Core Nuclear Core Reactor Zionite Light DM Reactor Propulsion Light Treads Treads Light Treads Leg Aluminum Leg Hover Unit Zionite Glidesys II Utility Improved Heat Sink Device Improved Heat Sink Storage High-capacity Storage Unit Processor Transport Network Coupler Hackware System Shield Protection Hardened Heavy Armor Plating Weapon Gauss Cannon Energy Gun AWS/Thermal Energy Cannon Heavy Ion Cannon Ballistic Cannon Gauss Cannon Launcher Precision Grenade Launcher Build | -11 -10 -10 -10 -9 -8 -7 -7 -6 -6 ------- Run | Yrd Mat Min Exi Min Mat Fac Low Zio Dee Slots Evolved 6 | . . . . . 4 2 . . . Power . | . . . . . . . . . . Propulsion 2 | . . . . . 1 1 . . . Utility 2 | . . . . . 2 . . . . Weapon 2 | . . . . . 1 1 . . . Parts Attached 77 | 6 5 2 1 4 13 25 . . 21 Power 8 | 1 1 . . 1 1 2 . . 2 Engine 5 | 1 1 . . 1 1 1 . . . Core 1 | . . . . . . 1 . . . Reactor 2 | . . . . . . . . . 2 Propulsion 26 | 2 . 1 . 1 3 11 . . 8 Treads 16 | . . . . . 3 10 . . 3 Leg 5 | 2 . 1 . 1 . 1 . . . Wheel . | . . . . . . . . . . Hover 5 | . . . . . . . . . 5 Flight . | . . . . . . . . . . Utility 26 | 1 1 1 . 1 5 8 . . 9 Device 9 | . . 1 . . 1 4 . . 3 Storage 6 | 1 . . . 1 1 1 . . 2 Processor 3 | . 1 . . . 1 . . . 1 Hackware 2 | . . . . . 1 1 . . . Protection 6 | . . . . . 1 2 . . 3 Artifact . | . . . . . . . . . . Weapon 17 | 2 3 . 1 1 4 4 . . 2 Energy Gun 6 | 2 1 . 1 . . . . . 2 Energy Cannon 6 | . 2 . . 1 2 1 . . . Ballistic Gun . | . . . . . . . . . . Ballistic Cannon 3 | . . . . . 2 1 . . . Launcher 2 | . . . . . . 2 . . . Special Weapon . | . . . . . . . . . . Impact Weapon . | . . . . . . . . . . Slashing Weapon . | . . . . . . . . . . Piercing Weapon . | . . . . . . . . . . Special Melee Weapon . | . . . . . . . . . . Unidentified Prototypes 12 | . . . . . . 3 . . 9 Parts Lost 19 | . . . 1 . 2 1 . . 15 Power 2 | . . . 1 . . . . . 1 Propulsion 10 | . . . . . 1 1 . . 8 Utility 5 | . . . . . 1 . . . 4 Weapon 2 | . . . . . . . . . 2 Highest Loss Streak 8 | . . . 1 . 2 1 . . 8 To Critical Strikes . | . . . . . . . . . . Average Backups 10 | 4 7 7 6 7 9 10 14 14 7 Power . | . . . . . . . . . . Propulsion 2 | 2 2 1 1 1 1 2 4 4 2 Utility 4 | . . 1 1 4 4 4 7 7 3 Weapon 3 | 1 4 4 3 2 3 4 3 3 2 Tool/Special . | . . . . . . . . . . Unused Backups 26 | . 4 3 5 . 2 6 . . 6 Power . | . . . . . . . . . . Propulsion 10 | . 2 2 1 . 1 3 . . 1 Utility 7 | . . . . . 1 2 . . 4 Weapon 9 | . 2 1 4 . . 1 . . 1 Tool/Special . | . . . . . . . . . . Average Slot Usage (%) 88 | . 88 100 80 84 86 95 91 91 68 Engine 6 | . 14 14 12 13 9 . 7 7 2 Core 1 | . . . . . . 6 . . . Treads 18 | . . . . . 14 28 30 30 11 Leg 8 | . 28 28 28 28 12 . . . . Hover 1 | . . . . . . . . . 13 Device 10 | . . 1 14 14 16 14 7 7 3 Storage 8 | . 14 14 14 14 9 7 7 7 5 Protection 4 | . . . . . 3 6 7 7 9 Energy Gun 3 | . 7 . 3 13 . . . . 9 Energy Cannon 6 | . 20 28 7 . 7 5 6 6 2 Ballistic Cannon 12 | . . . . . 11 21 22 22 1 Peak Build Rating 79 | 6 7 9 28 32 32 57 69 69 79 Average Rating 40 | 3 6 7 13 29 27 44 57 57 63 On Entrance 27 | . 6 7 9 27 31 28 57 57 57 Naked Turns 15 | . . . . . . . . . 15 Heaviest Build 101 | 11 14 15 17 54 60 95 95 101 98 Greatest Support 104 | 20 20 20 20 20 60 98 98 98 104 Greatest Overweight (x) 2 | . . . . 2 1 1 . 1 1 Average Overweight (x) . | . . . . . . . . . . Largest Inventory Capacity 20 | 8 8 8 8 20 20 20 20 20 20 Average Capacity 14 | 7 8 8 8 15 15 16 20 20 9 Most Carried 20 | 7 8 8 8 15 15 20 20 20 20 Average Carried 14 | 5 7 7 7 11 14 16 19 19 8 Final Capacity 20 | 8 8 8 8 20 15 20 20 20 5 Final Carried 20 | 6 8 8 8 15 15 20 20 20 1 Class Distribution -------------------- 28% | Mutant 26% | Tank 22% | Scavenger-Tank 17% | Scavenger-Mutant Dominant Class ---------------- Mutant | -10/Materials Mutant | -10/Mines Mutant | -10/Exiles Mutant | -9/Mines Scavenger-Mutant | -8/Materials Scavenger-Tank | -7/Factory Tank | -7/Lower Caves Tank | -6/Zion Scavenger-Mutant | -6/Deep Caves Resources | -11 -10 -10 -10 -9 -8 -7 -7 -6 -6 ----------- Run | Yrd Mat Min Exi Min Mat Fac Low Zio Dee Matter Collected 2652 | 214 86 30 . 82 444 1455 86 20 235 Remotely . | . . . . . . . . . . Salvage Created 3094 | . 193 312 161 35 573 1419 45 . 356 Parts 166 | . 9 10 6 2 29 79 . . 31 Haulers Intercepted 6 | . 1 . . . 2 3 . . . Recyclers Shooed 5 | . 1 . . . 3 1 . . . Parts Field Recycled . | . . . . . . . . . . Retrieved Matter . | . . . . . . . . . . Parts Self-Destructed 4 | . . . . . . . 3 1 . Prevented . | . . . . . . . . . . Kills | -11 -10 -10 -10 -9 -8 -7 -7 -6 -6 ------- Run | Yrd Mat Min Exi Min Mat Fac Low Zio Dee Combat Hostiles Destroyed 57 | . 5 4 4 1 5 29 1 . 8 Guns 18 | . 3 . 4 . . 4 . . 7 Cannons 35 | . 2 4 . 1 5 22 . . 1 AOE 2 | . . . . . . 2 . . . Classes Destroyed 15 | . 3 1 2 . 3 3 1 . 2 Worker 5 | . . . . . 2 3 . . . Tunneler 2 | . . . . . . 2 . . . Hauler 6 | . 1 . . . 2 3 . . . Recycler 10 | . . 2 . . 4 4 . . . Operator 1 | . . . . . . 1 . . . Watcher 4 | . . . . . 1 3 . . . Swarmer 15 | . 3 . . . . 12 . . . Grunt 19 | . 2 4 2 1 2 8 . . . Duelist 3 | . . . 1 . . 2 . . . Sentry 7 | . . . . . 3 4 . . . Hunter 1 | . . . 1 . . . . . . Programmer 3 | . . . . . . 3 . . . Behemoth 1 | . . . . . . . 1 . . Z-Technician 5 | . . . . . . . . . 5 Z-Light 4 | . . . . . . . . . 4 Assembled 3 | . . . . . . . . . 3 Best Kill Streak 9 | . 3 2 4 1 4 9 1 . 3 Combat Bots Only 7 | . 3 1 4 1 1 7 1 . 3 Max Kills in Single Turn 3 | . 1 1 1 1 1 3 1 . 2 Gunslinging . | . . . . . . . . . . Exploded 2 | . . . . . . 2 . . . Melee . | . . . . . . . . . . Uniques/NPCs Destroyed 1 | . . . . . . . . . 1 Z-Imprinter (-6/Deep Caves) Combat | -11 -10 -10 -10 -9 -8 -7 -7 -6 -6 -------- Run | Yrd Mat Min Exi Min Mat Fac Low Zio Dee Hostile Shots Fired 367 | . 15 23 52 . 7 183 24 . 63 Missed 140 | . 6 6 24 . 2 74 11 . 17 Hits 227 | . 9 17 28 . 5 109 13 . 46 Melee 5 | . . . . . . 5 . . . Projectile 222 | . 9 17 28 . 5 104 13 . 46 Critical Strikes 5 | . . . 2 . 1 2 . . . Damage Taken 4099 | . 82 229 434 . 81 1251 160 49 1813 Core 605 | . 10 61 125 . . 81 . . 328 Absorbed by Shields . | . . . . . . . . . . Ignored by Resistances 200 | . . . . . . 200 . . . Regen/Repaired (Parts) 348 | . . . . . 101 220 . 27 . Core Remaining (%) 73 | 100 . . . 21 100 . . . . Volleys Fired 198 | . 14 20 . 1 31 90 2 19 21 Largest 4 | . 2 2 . 1 3 4 1 1 3 Hottest 186 | . 120 120 . 100 156 178 100 100 186 Shots Fired 527 | . 28 40 32 1 66 291 2 19 48 Gun 95 | . 10 . 32 . 1 16 . . 36 Cannon 431 | . 18 40 . 1 65 275 2 19 11 Launcher 1 | . . . . . . . . . 1 Special . | . . . . . . . . . . Kinetic 268 | . . . . . 43 218 . . 7 Thermal 242 | . 23 40 32 1 12 73 2 19 40 Explosive 1 | . . . . . . . . . 1 Electromagnetic 16 | . 5 . . . 11 . . . . Robot Hit Streak 12 | . 7 10 3 1 11 12 2 . 7 Robot Miss Streak 6 | . 1 3 2 . 3 6 . . 2 Penetration Max 1 | . . . . . . 1 . . . Secondary Targets . | . . . . . . . . . . Autonomous 61 | . . . 32 . 1 16 . . 12 Shots Hit Robots 259 | . 17 25 16 1 34 132 2 . 32 Core Hits 111 | . 6 8 6 1 15 53 1 . 21 Critical Kills 2 | . . . . . . 1 1 . . Critical Parts Destroyed . | . . . . . . . . . . Critical Strikes 17 | . 1 . . . 3 11 1 . 1 Meltdown 2 | . . . . . . 1 1 . . Blast 14 | . . . . . 3 10 . . 1 Corrupt 1 | . 1 . . . . . . . . Melee Attacks . | . . . . . . . . . . Impact . | . . . . . . . . . . Slashing . | . . . . . . . . . . Piercing . | . . . . . . . . . . Sneak Attacks . | . . . . . . . . . . Combat Hostiles . | . . . . . . . . . . Follow-up Attacks . | . . . . . . . . . . Damage Inflicted 8995 | . 248 436 447 170 1005 3924 338 . 2427 Guns 1839 | . 74 . 447 . . 389 . . 929 Cannons 5551 | . 174 436 . 95 1005 3329 250 . 262 Explosions 1548 | . . . . 75 . 149 88 . 1236 Melee . | . . . . . . . . . . Ramming 57 | . . . . . . 57 . . . Kinetic 3566 | . . . . . 749 2685 . . 132 Thermal 5108 | . 217 436 447 170 116 1182 338 . 2202 Explosive 93 | . . . . . . . . . 93 Electromagnetic 171 | . 31 . . . 140 . . . . Impact . | . . . . . . . . . . Slashing . | . . . . . . . . . . Piercing . | . . . . . . . . . . Highest Corruption 2 | . . . 2 2 . . . . . Average Corruption 1 | . . . 1 2 . . . . . Corruption Purged . | . . . . . . . . . . Corruption Blocked . | . . . . . . . . . . Effects 9 | . . . . 9 . . . . . Message Errors 3 | . . . . 3 . . . . . Matter Fused 2 | . . . . 2 . . . . . Heat Flow Errors 1 | . . . . 1 . . . . . Energy Discharges 1 | . . . . 1 . . . . . Data Loss (minor) 2 | . . . . 2 . . . . . Overload Shots . | . . . . . . . . . . Overflow Damage 196 | . . 14 . . 34 99 2 . 47 Projectiles 151 | . . 14 . . 34 99 2 . 2 Explosions 45 | . . . . . . . . . 45 Melee . | . . . . . . . . . . Knockbacks 25 | . . . . . 4 19 . . 2 Impact . | . . . . . . . . . . Kinetic 25 | . . . . . 4 19 . . 2 Secondary . | . . . . . . . . . . Self-Inflicted Damage 543 | . . . . . . . . 49 494 Shots 3 | . . . . . . . . 1 2 Rammed 4 | . . . . . . 4 . . . Targets Rammed 6 | . . . . . . 6 . . . Kicked . | . . . . . . . . . . Crushed 2 | . . . . . . 2 . . . Highest Temperature 340 | . 258 333 . 258 60 60 . 1 340 Average Temperature 83 | . 83 136 . 144 19 13 . 1 158 Received Heat Transfer 990 | . 18 129 . . 63 321 12 . 447 Effects 5 | . . 4 . . . . . . 1 Energy Bleed 1 | . . 1 . . . . . . . Interference 3 | . . 3 . . . . . . . Matter Decay 1 | . . . . . . . . . 1 Siege Activations . | . . . . . . . . . . Martial Activations . | . . . . . . . . . . Shielding Activations . | . . . . . . . . . . Robots Disrupted . | . . . . . . . . . . Combat Hostiles . | . . . . . . . . . . Robots Corrupted . | . . . . . . . . . . Combat Hostiles . | . . . . . . . . . . Parts Fried . | . . . . . . . . . . Impact Corruptions . | . . . . . . . . . . Robots Melted 2 | . . . . . . 1 1 . . Combat Hostiles 2 | . . . . . . 1 1 . . Parts Melted 9 | . 2 1 3 . . . 1 . 2 Heat Transferred 5222 | . 470 925 555 160 185 1418 240 . 1269 Parts Sabotaged . | . . . . . . . . . . Parts Stolen . | . . . . . . . . . . Parts Stripped . | . . . . . . . . . . Power Chain Reactions . | . . . . . . . . . . Alert | -11 -10 -10 -10 -9 -8 -7 -7 -6 -6 ------- Run | Yrd Mat Min Exi Min Mat Fac Low Zio Dee Maximum Alert Level 2 | . . . . . . 2 . . . Low Security (%) 73 | 100 100 100 . 100 100 47 . . . Level 1 8 | . . . . . . 16 . . . Level 2 18 | . . . . . . 36 . . . Level 3 . | . . . . . . . . . . Level 4 . | . . . . . . . . . . Level 5 . | . . . . . . . . . . High Security . | . . . . . . . . . . Max Security . | . . . . . . . . . . Peak Influence 518 | . 75 45 . 30 52 518 . . . Initial . | . . . . . . . . . . Average 132 | . 18 17 . . 7 253 . . . Influence Increases 1739 | . 133 125 80 30 200 1141 30 . . Destroy 0b10 Robot/C 1040 | . 100 80 80 20 100 640 20 . . Destroy 0b10 Robot/NC 140 | . 5 10 . . 45 80 . . . Destroy Leader 228 | . 12 20 . . 36 150 10 . . Successful Hack 38 | . . . . . . 38 . . . Disable Machine 180 | . 15 15 . . . 150 . . . Destroy Structure 83 | . 1 . . 10 19 53 . . . Lose Combat Pursuer 30 | . . . . . . 30 . . . Influence Decreases 1739 | . 133 125 42 68 200 674 444 53 . Entered New Map 265 | . . . . 38 . . 174 53 . Time Decay 1403 | . 133 125 32 30 189 624 270 . . Lost Part 31 | . . . 10 . 11 10 . . . Lost Ally 40 | . . . . . . 40 . . . Squads Dispatched 10 | . 1 . . 1 1 7 . . . Investigation 2 | . . . . 1 . 1 . . . Extermination 4 | . . . . . . 4 . . . Reinforcement 4 | . 1 . . . 1 2 . . . Assault . | . . . . . . . . . . Garrison . | . . . . . . . . . . Intercept . | . . . . . . . . . . Searches Triggered . | . . . . . . . . . . Construction Impeded 1 | . . . . . 1 . . . . Haulers Reinforced . | . . . . . . . . . . Active Scanning Responses . | . . . . . . . . . . Cargo Convoy Interrupts . | . . . . . . . . . . Stealth | -11 -10 -10 -10 -9 -8 -7 -7 -6 -6 --------- Run | Yrd Mat Min Exi Min Mat Fac Low Zio Dee Distress Signals . | . . . . . . . . . . Communications Jammed . | . . . . . . . . . . Distress Signals . | . . . . . . . . . . Times Spotted 77 | . 6 4 8 2 5 39 1 . 12 Peak Tracking Total 5 | . 4 2 5 3 2 5 1 . 4 Tactical Retreats 3 | . . . . . . 2 . . 1 Traps | -11 -10 -10 -10 -9 -8 -7 -7 -6 -6 ------- Run | Yrd Mat Min Exi Min Mat Fac Low Zio Dee Traps Triggered 1 | . . . . . . 1 . . . Indirectly . | . . . . . . . . . . Trap Hack Attempts . | . . . . . . . . . . Triggered . | . . . . . . . . . . Disarmed . | . . . . . . . . . . Reprogrammed . | . . . . . . . . . . Reused . | . . . . . . . . . . Traps Extracted . | . . . . . . . . . . Installed . | . . . . . . . . . . Triggered . | . . . . . . . . . . Machines | -11 -10 -10 -10 -9 -8 -7 -7 -6 -6 ---------- Run | Yrd Mat Min Exi Min Mat Fac Low Zio Dee Machines Disabled 19 | . 1 1 1 . . 10 . 4 2 Max in Single Turn 2 | . 1 1 1 . . 1 . 2 1 Garrison Access 2 | . . . . . . 2 . . . Machines Repaired . | . . . . . . . . . . Machines Dismantled . | . . . . . . . . . . Machines Sabotaged . | . . . . . . . . . . Overloaded Fab Kills . | . . . . . . . . . . Hacking | -11 -10 -10 -10 -9 -8 -7 -7 -6 -6 --------- Run | Yrd Mat Min Exi Min Mat Fac Low Zio Dee Machines Accessed 15 | . 2 . 1 1 1 10 . . . Terminals 7 | . 1 . . . . 6 . . . Fabricators 1 | . . . . . . 1 . . . Repair Stations 2 | . . . . . 1 1 . . . Recycling Units 1 | . 1 . . . . . . . . Scanalyzers . | . . . . . . . . . . Garrison Access 2 | . . . . . . 2 . . . Total Hacks 29 | . 4 . 1 1 5 18 . . . Successful 18 | . 2 . 1 1 4 10 . . . Failed 11 | . 2 . . . 1 8 . . . Catastrophic 1 | . . . . . . 1 . . . Database Lockouts . | . . . . . . . . . . Manual 2 | . . . 1 . . 1 . . . Terminals 12 | . 3 . . . . 9 . . . Fabricators 1 | . . . . . . 1 . . . Repair Stations 10 | . . . . . 5 5 . . . Recycling Units 1 | . 1 . . . . . . . . Scanalyzers . | . . . . . . . . . . Garrison Access 3 | . . . . . . 3 . . . Terminal Hacks 7 | . 1 . 1 1 . 4 . . . Prototype ID Bank 1 | . . . . . . 1 . . . Open Door 1 | . . . . 1 . . . . . Branch Access Points 1 | . . . . . . 1 . . . Locate Traps 1 | . . . . . . 1 . . . Zone Layout 2 | . 1 . . . . 1 . . . Proto ID Catalog 1 | . . . 1 . . . . . . Fabricator Hacks . | . . . . . . . . . . Repair Station Hacks 7 | . . . . . 4 3 . . . Scan Component 4 | . . . . . 2 2 . . . Repair 3 | . . . . . 2 1 . . . Recycling Unit Hacks 1 | . 1 . . . . . . . . Retrieve Components 1 | . 1 . . . . . . . . Scanalyzer . | . . . . . . . . . . Garrison Access Hacks 2 | . . . . . . 2 . . . Seal Access 2 | . . . . . . 2 . . . Unauthorized Hacks 1 | . . . . . . 1 . . . Terminals . | . . . . . . . . . . Fabricators 1 | . . . . . . 1 . . . Liberate 1 | . . . . . . 1 . . . Repair Stations . | . . . . . . . . . . Recycling Units . | . . . . . . . . . . Scanalyzers . | . . . . . . . . . . Garrison Access . | . . . . . . . . . . Data Cores Recovered 1 | . . . . . . 1 . . . Used . | . . . . . . . . . . Hacking Detections 9 | . 1 . . . . 8 . . . Full Trace Events 1 | . . . . . . 1 . . . Feedback Events . | . . . . . . . . . . Feedback Blocked . | . . . . . . . . . . Robot Schematics Acquired . | . . . . . . . . . . Robots Built . | . . . . . . . . . . Authchips . | . . . . . . . . . . Time . | . . . . . . . . . . Total Robot Build Rating . | . . . . . . . . . . Part Schematics Acquired . | . . . . . . . . . . Parts Built . | . . . . . . . . . . Authchips . | . . . . . . . . . . Time . | . . . . . . . . . . Total Part Build Rating . | . . . . . . . . . . Parts Repaired 3 | . . . . . 2 1 . . . Time 108 | . . . . . 64 44 . . . Parts Recycled . | . . . . . . . . . . Recycled Matter . | . . . . . . . . . . Retrieved Matter . | . . . . . . . . . . Retrieved Components 1 | . 1 . . . . . . . . Parts Scanalyzed . | . . . . . . . . . . Part Schematics Acquired . | . . . . . . . . . . Parts Damaged . | . . . . . . . . . . Bothacking | -11 -10 -10 -10 -9 -8 -7 -7 -6 -6 ------------ Run | Yrd Mat Min Exi Min Mat Fac Low Zio Dee Used RIF Installer . | . . . . . . . . . . Robots Hacked . | . . . . . . . . . . Non-combat . | . . . . . . . . . . Combat . | . . . . . . . . . . Robot Hacks Applied . | . . . . . . . . . . Relay Couplers Released . | . . . . . . . . . . Fabnet Peak Effective % . | . . . . . . . . . . Robots Rewired . | . . . . . . . . . . Allies Hacked . | . . . . . . . . . . Hacks Repelled . | . . . . . . . . . . Allies | -11 -10 -10 -10 -9 -8 -7 -7 -6 -6 -------- Run | Yrd Mat Min Exi Min Mat Fac Low Zio Dee Total Allies 2 | . . . . . . 2 . . . Largest Group 2 | . . . . . . 2 . . . Highest-Rated Group 64 | . . . . . . 64 . . . Highest-Rated Ally 32 | . . . . . . 32 . . . Total Orders . | . . . . . . . . . . Ally Attacks 11 | . . . . . . 11 . . . Total Damage 446 | . . . . . . 446 . . . Kills 3 | . . . . . . 3 . . . Allies Corrupted . | . . . . . . . . . . Allies Melted . | . . . . . . . . . . Intel | -11 -10 -10 -10 -9 -8 -7 -7 -6 -6 ------- Run | Yrd Mat Min Exi Min Mat Fac Low Zio Dee Active Infowar (turns) 559 | . 104 298 . . . . . . 157 Terrain 157 | . . . . . . . . . 157 T.N.C. 402 | . 104 298 . . . . . . . Robot Analysis Total . | . . . . . . . . . . Derelict Logs Recovered 4 | . . . . 1 . . 2 1 . Drone Launches . | . . . . . . . . . . Drone Recoveries . | . . . . . . . . . . Exploration | -11 -10 -10 -10 -9 -8 -7 -7 -6 -6 ------------- Run | Yrd Mat Min Exi Min Mat Fac Low Zio Dee Turns Passed 9074 | 55 465 338 526 1008 944 2883 583 1218 1054 Spaces Moved 5557 | 37 311 187 429 505 425 1448 356 719 1140 Core 63 | 6 . . . . . . . . 57 Treads 2989 | . . . . . 288 1448 356 719 178 Legs 1600 | 31 311 187 429 505 137 . . . . Wheels . | . . . . . . . . . . Hover 905 | . . . . . . . . . 905 Flight . | . . . . . . . . . . Fastest Speed 48 | 50 120 120 120 120 160 158 158 158 48 Average Speed 138 | 108 120 120 120 184 169 164 158 159 68 Slowest Speed 260 | 120 120 120 120 260 190 243 158 238 165 Overloaded Moves . | . . . . . . . . . . Propulsion Burnouts . | . . . . . . . . . . Robots Hopped . | . . . . . . . . . . Potential Cave-ins . | . . . . . . . . . . Cave-ins Triggered . | . . . . . . . . . . Exploration Rate (%) 51 | 4 47 42 67 83 26 44 48 84 74 Regions Visited 9 Branch Regions 6 Pre-discovered Areas 4 | . . . . . . . 1 3 . Known Exits Taken 2 | . . . . . 1 1 . . . Unknown Exits Taken 7 | 1 1 1 1 1 . . 1 1 . Scrap Searched 6 | . . 1 . 2 . . 1 2 . Spaces Dug 31 | . . . . . 4 18 . 9 . Terrain Destroyed 146 | . . . . 12 18 56 . 26 34 Melee . | . . . . . . . . . . Projectile 78 | . . . . . 18 52 . 3 5 AOE 68 | . . . . 12 . 4 . 23 29 Terrain Rammed . | . . . . . . . . . . Walls Destroyed . | . . . . . . . . . . Machines Disabled . | . . . . . . . . . . Actions | -11 -10 -10 -10 -9 -8 -7 -7 -6 -6 --------- Run | Yrd Mat Min Exi Min Mat Fac Low Zio Dee Total 6578 | 50 376 262 443 580 591 1775 371 763 1367 Wait 541 | . 31 46 2 59 105 137 8 20 133 Move 5548 | 36 310 186 428 504 424 1447 355 718 1140 Hop . | . . . . . . . . . . Pick Up 68 | 8 9 3 2 9 4 19 . . 14 Fast Attach 60 | 4 1 1 2 1 9 15 2 2 23 Attach 24 | 2 . . . 2 5 6 1 1 7 Detach 9 | . . . . . 3 4 1 1 . Swap 26 | . 4 1 . 2 3 16 . . . Drop 98 | . 7 5 9 2 7 35 2 2 29 Fire 198 | . 14 20 . 1 31 90 2 19 21 Melee . | . . . . . . . . . . Ram . | . . . . . . . . . . Kick . | . . . . . . . . . . Crush 6 | . . . . . . 6 . . . Escape Stasis . | . . . . . . . . . . Rewire . | . . . . . . . . . . Trap . | . . . . . . . . . . Miscellaneous . | . . . . . . . . . . Route ------- -11/Scrapyard -10/Materials (discovered 2 exits: [*Min] / [*Sub]) -10/Mines (discovered 2 exits: *Exi / [*Sub]) -10/Exiles -9/Mines -8/Materials -7/Factory (discovered 3 exits: [*Fac] / *Low x2) -7/Lower Caves -6/Zion -6/Deep Caves (discovered 1 exit: [*Pro]) History --------- Turn | Location | Event 7 | -11/Scrapyard | Discovered new exit (range 16) 56 | -11/Scrapyard | Entered Materials 149 | -10/Materials | Discovered new exit (range 9) 207 | -10/Materials | Discovered new exit (range 13) 305 | -10/Materials | Build established: Mutant 521 | -10/Materials | Entered Mines 639 | -10/Mines | Discovered new exit (range 3) 854 | -10/Mines | Deemed a non-threat by the Exiles lab entrance 854 | -10/Mines | Discovered new exit (range 5) 859 | -10/Mines | Entered Exiles 892 | -10/Exiles | Met 8R-AWN 909 | -10/Exiles | Met EX-HEX 942 | -10/Exiles | Met EX-BIN 957 | -10/Exiles | Aligned with FarCom system 958 | -10/Exiles | Given EX-Vault access code 988 | -10/Exiles | Opened EX-Vault 996 | -10/Exiles | Found AWS/Thermal 1006 | -10/Exiles | Found YOLO Cannon 1032 | -10/Exiles | Warned to stay clear of 0b10 Research branches 1044 | -10/Exiles | Exiles lab attacked by MAIN.C 1271 | -10/Exiles | Found XL Autogun Array 1340 | -10/Exiles | Core integrity fell below 50% 1375 | -10/Exiles | Discovered new exit (range 10) 1385 | -10/Exiles | Stole three prototypes: AWS/Thermal, YOLO Cannon, XL Autogun Array 1385 | -10/Exiles | Entered Mines 1451 | -9/Mines | Met a Derelict shopkeep closing up shop 1524 | -9/Mines | Assembled infested the area 2047 | -9/Mines | Learned 2 Materials zone layouts 2346 | -9/Mines | Discovered new exit (range 6) 2393 | -9/Mines | Entered Materials 2393 | -8/Materials | Evolved 4 slots: Propulsion x1, Utility x2, Weapon x1 2394 | -8/Materials | Identified exit to Factory 2667 | -8/Materials | Repaired Aluminum Leg 2707 | -8/Materials | Repaired Imp. Heat Sink 3096 | -8/Materials | Build established: Scavenger-Mutant 3337 | -8/Materials | Entered Factory 3337 | -7/Factory | Evolved 2 slots: Propulsion x1, Weapon x1 3339 | -7/Factory | FarCom data flow suspended 3924 | -7/Factory | Build established: Scavenger-Tank 4070 | -7/Factory | Identified exit to Lower Caves 4407 | -7/Factory | Destroyed 7 combat bots 5522 | -7/Factory | Repaired Med. Reactive Plating 5776 | -7/Factory | Discovered new exit (range 8) 6220 | -7/Factory | Entered Lower Caves 6332 | -7/Lower Caves | Learned location of 1 exit from Proximity Caves 6378 | -7/Lower Caves | Spotted B-75 Beast 6379 | -7/Lower Caves | Build established: Tank 6402 | -7/Lower Caves | Destroyed B-75 Beast 6779 | -7/Lower Caves | A Derelict revealed a hidden shortcut to a safe place 6792 | -7/Lower Caves | Learned location of Zion (-6) 6803 | -7/Lower Caves | Entered Zion 6825 | -6/Zion | Given A8's code to call for help 7296 | -6/Zion | Learned location of Extension (-6) 7548 | -6/Zion | Learned location of Warlord (-5) 7690 | -6/Zion | Met Imprinter 8015 | -6/Zion | Discovered new exit (range 5) 8018 | -6/Zion | Saw the warning signs outside the Deep Caves entrance 8021 | -6/Zion | Entered Deep Caves 8157 | -6/Deep Caves | Z-Facility disabled 8328 | -6/Deep Caves | Attacked by Z-Imprinter 8337 | -6/Deep Caves | YOLO Cannon suddenly exploded 8338 | -6/Deep Caves | Core integrity fell below 50% 8346 | -6/Deep Caves | Destroyed Z-Imprinter 8368 | -6/Deep Caves | Lost 4 parts (2n1u1w) 8478 | -6/Deep Caves | Found Prototype Protection 8478 | -6/Deep Caves | Identified Zio. Weapon Casing 8531 | -6/Deep Caves | Core integrity fell below 20% 8561 | -6/Deep Caves | Lost 3 parts (1p1n1u) 8690 | -6/Deep Caves | Build established: Scavenger-Mutant 8889 | -6/Deep Caves | Found Surveybot 24 Scanner 8891 | -6/Deep Caves | Found Surveybot 24 Chip 8892 | -6/Deep Caves | Discovered new exit (range 19) 8934 | -6/Deep Caves | Found Prototype Protection 8934 | -6/Deep Caves | Identified Zio. Heavy Carapace 9075 | -6/Deep Caves | Destroyed by 16-NR8(z) with Zionite Laser-S Last Messages --------------- 09026_ 3U-40Q(z) destroyed. 09031_ Acquired Zio. Glidesys I. 09032_ Dropped Hrd. Heavy Armor Plating. 09033_ Zio. Glidesys II destroyed. 09033_ Acquired 53 matter. 09046_ Acquired Exp. Heat Sink. 09046_ Surveybot 24 Scanner destroyed. 09048_ Acquired Mni. Assault Cannon. 09050_ Acquired Med. Treads. 09054_ 42-3XN(z) knocked back. 09057_ Zio. Glidesys I destroyed. 09058_ 42-3XN(z) suffers critical hit (Blast). 09058_ 42-3XN(z) destroyed. 09059_ Zio. Glidesys I destroyed. 09059_ Zio. Laser-M destroyed. 09067_ HL-AH7(z) knocked back. 09067_ Exp. Heat Sink destroyed. 09073_ Destroyed Zio. Glidesys I. 09073_ Med. Treads destroyed. 09075_ Overheating: Matter decay (-45). Map ----- +----------------------------------------------------+ | | | | | | | | | ????????########################################## | | ????????################################### | | ?###################### ####### ######## | | ## ############# ##### ####### ### | | ############# ##### ####### ###### | | #### ######## #### ##### #### | | ##### ######## ### ### # | | ## #### ########## #### | | ?## ## ######## ###### | | ?## ######## ######## | | ## ## ######## ##### | | ## ######## ### #### | | ## ### ## ######## # #" #### | | ######## ## ######## ## ### #!!# | | ############## ######## ### ! ! | | ################ ###### ### ###*!#! | | ################### ###### ### ######" | | #?################# ###### #### ####### | | ################# #### ##### ###### | | ############### ## ## ##### ####### | | ############## ###;;; ##### ####### | | ############## #####@%z #### #### # | | ############# ## =!z% ### ### | | ############ ##< !!#%#### ## | | ############ ####;####;### ## | | ############ ############# ### | | ########### ########### ##### | | ########## ############## ##### | | ####### ############### ###### | | ##### ########## ###### | | ##### ####### ####### | | ##### ### ## | | ##### ### ## | | ######## ##### ##### ### # | | #??###### ###### ###### #### | | ###?##### ####### ############ | | ##?#### ####### ## | | ##### ###### | | ##### ### | | ##?###### ########## | | ######## #### ########### | | ###### ####### ############# | | ###?## ########### ############# | | ####### ########### ############## | | ###### ####### ############## | | ## ############### | +----------------------------------------------------+ Best States ------------- Heat Dissipation 67 Energy Generation 27 Energy Capacity 1300 Matter Stores 300 Matter Capacity 300 Sight Range 16 Terrain Scan Range 24 Terrain Scan Density 2010 Armor Coverage 1200 Resistance: KI 30 Weapon Shielding 100 Evasion (%) 55 Recoil Reduction 4 Offensive Hacking 10 Defensive Hacking 10 Item Schematics ----------------- None Robot Schematics ------------------ None Fabricated ------------ Nothing Repaired ---------- Aluminum Leg | 17% | -8/Materials Imp. Heat Sink | 32% | -8/Materials Med. Reactive Plating | 8% | -7/Factory Alien Tech Used ----------------- None Achievements -------------- None Challenges ------------ None Game ------ Seed PersonalHeartShifter Manual? 0 Play Time 00:59:08 Cumulative 318.8 hours Start 2025.07.15 @ 18:06:21 End 2025.07.15 @ 21:38:44 Sessions 3 Manual Loads 0 Difficulty Rogue Special Mode None Game No. 160 Rogue 160 Adventurer 0 Explorer 0 Win Type - Total 7 Types 4/0/2/0/0/0/0/0/0/1 Lore% 81 Gallery% 81 Achievement% 67 Wizard Run 0 Options --------- Layout 1 ASCII 0 Keyboard 0 Movement Mouse Keybinds 0 Fullscreen 1 Font 24/Smallcaps Map View 50x35 Zoom Use 0% Tactical HUD 1 Map Filters NONE Filters NONE Steam 1 RUN: 6092deff-0e3b-4be1-8ed5-fce31c0ca81d